[Event "Titled Tuesday Blitz August 3 2021"]
[White "Csonka, Balazs"]
[Black "Siva Mahadevan"]
[WhiteFideId "742910"]
[BlackFideId "25043153"]
[WhiteElo "2404"]
[BlackElo "2203"]
[Result "1-0"]
[Round "08"]
[TimeControl "180+1"]
[Date "2021.08.03"]
[WhiteClock "0:00:03"]
[BlackClock "0:00:12"]

1. d4 {[%clk 0:03:00]}  Nf6 {[%clk 0:02:59]} 2. Bg5 {[%clk 0:03:00]}  Ne4 {[%clk 0:02:58]} 3. Bf4 {[%clk 0:02:59]}  c5 {[%clk 0:02:58]} 4. d5 {[%clk 0:02:58]}  Qa5+ {[%clk 0:02:57]} 5. Nd2 {[%clk 0:02:55]}  e6 {[%clk 0:02:52]} 6. c3 {[%clk 0:02:39]}  Nf6 {[%clk 0:02:43]} 7. Nc4 {[%clk 0:02:20]}  Qa6 {[%clk 0:02:42]} 8. e4 {[%clk 0:02:17]}  b5 {[%clk 0:02:34]} 9. Ne3 {[%clk 0:01:47]}  Nxe4 {[%clk 0:02:14]} 10. a4 {[%clk 0:01:40]}  Qb7 {[%clk 0:02:06]} 11. axb5 {[%clk 0:01:36]}  d6 {[%clk 0:02:04]} 12. Ra4 {[%clk 0:00:59]}  Nf6 {[%clk 0:02:02]} 13. dxe6 {[%clk 0:00:59]}  Bxe6 {[%clk 0:02:02]} 14. Bxd6 {[%clk 0:00:57]}  Bxd6 {[%clk 0:01:57]} 15. Qxd6 {[%clk 0:00:58]}  Nbd7 {[%clk 0:01:57]} 16. Be2 {[%clk 0:00:50]}  Rd8 {[%clk 0:01:51]} 17. Qa6 {[%clk 0:00:43]}  Qc7 {[%clk 0:01:46]} 18. Nf3 {[%clk 0:00:29]}  O-O {[%clk 0:01:41]} 19. O-O {[%clk 0:00:22]}  Nb6 {[%clk 0:01:41]} 20. Raa1 {[%clk 0:00:22]}  Rd7 {[%clk 0:01:37]} 21. Rfd1 {[%clk 0:00:14]}  Rfd8 {[%clk 0:01:36]} 22. Rxd7 {[%clk 0:00:14]}  Rxd7 {[%clk 0:01:36]} 23. Rd1 {[%clk 0:00:14]}  Nfd5 {[%clk 0:01:34]} 24. Nxd5 {[%clk 0:00:12]}  Bxd5 {[%clk 0:01:34]} 25. Qa1 {[%clk 0:00:09]}  Re7 {[%clk 0:01:34]} 26. Re1 {[%clk 0:00:08]}  f6 {[%clk 0:01:32]} 27. h3 {[%clk 0:00:07]}  Qf4 {[%clk 0:01:31]} 28. Qd1 {[%clk 0:00:06]}  Rd7 {[%clk 0:01:28]} 29. Qc1 {[%clk 0:00:06]}  Qc7 {[%clk 0:01:27]} 30. Rd1 {[%clk 0:00:06]}  Re7 {[%clk 0:01:26]} 31. Re1 {[%clk 0:00:04]}  Qd7 {[%clk 0:01:23]} 32. Nh2 {[%clk 0:00:04]}  Qe8 {[%clk 0:01:22]} 33. Qd1 {[%clk 0:00:02]}  Kh8 {[%clk 0:01:18]} 34. Kf1 {[%clk 0:00:02]}  Qf7 {[%clk 0:01:08]} 35. Nf3 {[%clk 0:00:02]}  Bb3 {[%clk 0:01:07]} 36. Qd2 {[%clk 0:00:02]}  Rd7 {[%clk 0:01:07]} 37. Qe3 {[%clk 0:00:02]}  Rc7 {[%clk 0:01:03]} 38. Bd3 {[%clk 0:00:02]}  g5 {[%clk 0:01:00]} 39. Qe8+ {[%clk 0:00:02]}  Kg7 {[%clk 0:01:00]} 40. Qxf7+ {[%clk 0:00:02]}  Bxf7 {[%clk 0:01:01]} 41. g4 {[%clk 0:00:02]}  Nc4 {[%clk 0:01:00]} 42. Bxc4 {[%clk 0:00:02]}  Bxc4+ {[%clk 0:01:00]} 43. Kg2 {[%clk 0:00:03]}  Bxb5 {[%clk 0:01:00]} 44. Nd2 {[%clk 0:00:03]}  Bc6+ {[%clk 0:01:00]} 45. Kg3 {[%clk 0:00:03]}  Rb7 {[%clk 0:01:00]} 46. b3 {[%clk 0:00:03]}  Rd7 {[%clk 0:01:00]} 47. Nc4 {[%clk 0:00:04]}  Rd3+ {[%clk 0:01:00]} 48. Re3 {[%clk 0:00:04]}  Rd1 {[%clk 0:01:00]} 49. f4 {[%clk 0:00:02]}  Rg1+ {[%clk 0:00:59]} 50. Kf2 {[%clk 0:00:02]}  Rg2+ {[%clk 0:00:59]} 51. Kf1 {[%clk 0:00:02]}  gxf4 {[%clk 0:00:51]} 52. Re7+ {[%clk 0:00:03]}  Kg6 {[%clk 0:00:50]} 53. Rc7 {[%clk 0:00:03]}  Bf3 {[%clk 0:00:46]} 54. Nd6 {[%clk 0:00:03]}  Rc2 {[%clk 0:00:40]} 55. Nf5 {[%clk 0:00:03]}  Bxg4 {[%clk 0:00:13]} 56. hxg4 {[%clk 0:00:03]}  Kg5 {[%clk 0:00:12]} 57. Rg7# {[%clk 0:00:03]} 1-0


[Site "https://www.chess.com"]

[Event "Titled Tuesday Blitz August 3 2021"]
[White "Dang, Hoang Son"]
[Black "Petesch, Gabriel"]
[WhiteFideId "12402435"]
[BlackFideId "2032465"]
[WhiteElo "2248"]
[BlackElo "2374"]
[Result "1/2-1/2"]
[Round "08"]
[TimeControl "180+1"]
[Date "2021.08.03"]
[WhiteClock "0:00:07"]
[BlackClock "0:00:06"]

1. d4 {[%clk 0:03:00]}  c5 {[%clk 0:02:57]} 2. d5 {[%clk 0:03:00]}  Nf6 {[%clk 0:02:56]} 3. Nc3 {[%clk 0:03:00]}  g6 {[%clk 0:02:56]} 4. e4 {[%clk 0:03:01]}  Bg7 {[%clk 0:02:56]} 5. Nf3 {[%clk 0:03:00]}  O-O {[%clk 0:02:55]} 6. Be2 {[%clk 0:02:57]}  a6 {[%clk 0:02:55]} 7. a4 {[%clk 0:02:57]}  d6 {[%clk 0:02:50]} 8. Bg5 {[%clk 0:02:57]}  Bg4 {[%clk 0:02:49]} 9. Nd2 {[%clk 0:02:57]}  Bxe2 {[%clk 0:02:48]} 10. Qxe2 {[%clk 0:02:58]}  h6 {[%clk 0:02:47]} 11. Be3 {[%clk 0:02:58]}  Nbd7 {[%clk 0:02:43]} 12. O-O {[%clk 0:02:54]}  e6 {[%clk 0:02:31]} 13. dxe6 {[%clk 0:02:52]}  fxe6 {[%clk 0:02:32]} 14. f4 {[%clk 0:02:23]}  Qe7 {[%clk 0:02:30]} 15. Rad1 {[%clk 0:02:15]}  Rad8 {[%clk 0:02:21]} 16. Nc4 {[%clk 0:02:12]}  d5 {[%clk 0:02:06]} 17. exd5 {[%clk 0:01:52]}  exd5 {[%clk 0:02:07]} 18. Nxd5 {[%clk 0:01:52]}  Nxd5 {[%clk 0:02:07]} 19. Rxd5 {[%clk 0:01:53]}  b5 {[%clk 0:01:55]} 20. axb5 {[%clk 0:01:52]}  axb5 {[%clk 0:01:56]} 21. Ne5 {[%clk 0:01:33]}  Nxe5 {[%clk 0:01:48]} 22. Bxc5 {[%clk 0:01:33]}  Qc7 {[%clk 0:01:33]} 23. Bxf8 {[%clk 0:01:30]}  Rxd5 {[%clk 0:01:27]} 24. Bxg7 {[%clk 0:01:30]}  Kxg7 {[%clk 0:01:20]} 25. fxe5 {[%clk 0:01:30]}  Qxe5 {[%clk 0:01:14]} 26. Qf3 {[%clk 0:01:25]}  Qd4+ {[%clk 0:00:50]} 27. Kh1 {[%clk 0:01:22]}  Rd7 {[%clk 0:00:38]} 28. c3 {[%clk 0:01:18]}  Qd6 {[%clk 0:00:33]} 29. h3 {[%clk 0:01:16]}  Kh7 {[%clk 0:00:26]} 30. Qe4 {[%clk 0:01:07]}  Qe7 {[%clk 0:00:18]} 31. Qxe7+ {[%clk 0:00:57]}  Rxe7 {[%clk 0:00:19]} 32. Rf6 {[%clk 0:00:57]}  Re2 {[%clk 0:00:13]} 33. b4 {[%clk 0:00:56]}  Rc2 {[%clk 0:00:13]} 34. Rc6 {[%clk 0:00:56]}  h5 {[%clk 0:00:11]} 35. h4 {[%clk 0:00:56]}  Kh6 {[%clk 0:00:11]} 36. Kh2 {[%clk 0:00:57]}  Kg7 {[%clk 0:00:09]} 37. Kg3 {[%clk 0:00:56]}  Kh6 {[%clk 0:00:09]} 38. Kf3 {[%clk 0:00:55]}  Kg7 {[%clk 0:00:09]} 39. Rc5 {[%clk 0:00:53]}  Kf6 {[%clk 0:00:07]} 40. g3 {[%clk 0:00:53]}  Ke6 {[%clk 0:00:06]} 41. Kf4 {[%clk 0:00:52]}  Kf6 {[%clk 0:00:05]} 42. Rc6+ {[%clk 0:00:53]}  Kf7 {[%clk 0:00:05]} 43. Rc5 {[%clk 0:00:39]}  Kf6 {[%clk 0:00:05]} 44. Ke3 {[%clk 0:00:35]}  Rg2 {[%clk 0:00:03]} 45. Rxb5 {[%clk 0:00:33]}  Rxg3+ {[%clk 0:00:03]} 46. Kf2 {[%clk 0:00:33]}  Rxc3 {[%clk 0:00:02]} 47. Rc5 {[%clk 0:00:24]}  Rb3 {[%clk 0:00:01]} 48. b5 {[%clk 0:00:22]}  Ke6 {[%clk 0:00:02]} 49. Ke2 {[%clk 0:00:22]}  Kf6 {[%clk 0:00:03]} 50. Kd2 {[%clk 0:00:20]}  Rb4 {[%clk 0:00:03]} 51. Kc3 {[%clk 0:00:19]}  Rxh4 {[%clk 0:00:04]} 52. b6 {[%clk 0:00:20]}  Rh3+ {[%clk 0:00:05]} 53. Kb2 {[%clk 0:00:19]}  Rh2+ {[%clk 0:00:05]} 54. Rc2 {[%clk 0:00:16]}  Rh4 {[%clk 0:00:05]} 55. Kb3 {[%clk 0:00:17]}  Rh3+ {[%clk 0:00:06]} 56. Rc3 {[%clk 0:00:16]}  Rh1 {[%clk 0:00:06]} 57. Kb4 {[%clk 0:00:14]}  Rb1+ {[%clk 0:00:06]} 58. Rb3 {[%clk 0:00:14]}  Rd1 {[%clk 0:00:06]} 59. b7 {[%clk 0:00:12]}  Rd8 {[%clk 0:00:07]} 60. Kc5 {[%clk 0:00:13]}  g5 {[%clk 0:00:07]} 61. Kc6 {[%clk 0:00:11]}  Kf5 {[%clk 0:00:07]} 62. Kc7 {[%clk 0:00:09]}  Rh8 {[%clk 0:00:08]} 63. Rd3 {[%clk 0:00:10]}  h4 {[%clk 0:00:05]} 64. Rd8 {[%clk 0:00:08]}  Rh7+ {[%clk 0:00:05]} 65. Rd7 {[%clk 0:00:09]}  Rh8 {[%clk 0:00:05]} 66. Rd8 {[%clk 0:00:06]}  Rh7+ {[%clk 0:00:05]} 67. Rd7 {[%clk 0:00:06]}  Rh8 {[%clk 0:00:06]} 68. Rd8 {[%clk 0:00:07]} 1/2-1/2


[Site "https://www.chess.com"]

[Event "Titled Tuesday Blitz August 3 2021"]
[White "Firat, Burak"]
[Black "Cunjalo, Faris"]
[WhiteFideId "6305881"]
[BlackFideId "14410710"]
[WhiteElo "2531"]
[BlackElo "2234"]
[Result "0-1"]
[Round "08"]
[TimeControl "180+1"]
[Date "2021.08.03"]
[WhiteClock "0:00:07"]
[BlackClock "0:00:32"]

1. Nf3 {[%clk 0:03:00]}  d5 {[%clk 0:02:59]} 2. c4 {[%clk 0:03:00]}  d4 {[%clk 0:03:00]} 3. e3 {[%clk 0:02:59]}  Nc6 {[%clk 0:03:00]} 4. exd4 {[%clk 0:02:50]}  Nxd4 {[%clk 0:03:01]} 5. Nxd4 {[%clk 0:02:50]}  Qxd4 {[%clk 0:03:01]} 6. d3 {[%clk 0:02:51]}  g6 {[%clk 0:03:02]} 7. Nc3 {[%clk 0:02:46]}  Nh6 {[%clk 0:03:02]} 8. Be3 {[%clk 0:02:43]}  Qd8 {[%clk 0:03:02]} 9. d4 {[%clk 0:02:40]}  Nf5 {[%clk 0:03:02]} 10. Bd3 {[%clk 0:02:39]}  Nxe3 {[%clk 0:03:00]} 11. fxe3 {[%clk 0:02:39]}  Bh6 {[%clk 0:02:58]} 12. Qf3 {[%clk 0:02:36]}  c6 {[%clk 0:02:57]} 13. h4 {[%clk 0:02:34]}  Qb6 {[%clk 0:02:38]} 14. O-O {[%clk 0:02:16]}  O-O {[%clk 0:02:37]} 15. b3 {[%clk 0:02:06]}  Bg7 {[%clk 0:02:25]} 16. Ne4 {[%clk 0:02:01]}  Bf5 {[%clk 0:02:19]} 17. g4 {[%clk 0:02:00]}  Bxe4 {[%clk 0:02:19]} 18. Bxe4 {[%clk 0:02:00]}  c5 {[%clk 0:02:20]} 19. Bxb7 {[%clk 0:02:00]}  Rab8 {[%clk 0:02:20]} 20. Be4 {[%clk 0:01:55]}  cxd4 {[%clk 0:02:19]} 21. Rac1 {[%clk 0:01:47]}  Qc5 {[%clk 0:01:55]} 22. exd4 {[%clk 0:01:42]}  Bxd4+ {[%clk 0:01:56]} 23. Kh1 {[%clk 0:01:42]}  Rb6 {[%clk 0:01:45]} 24. g5 {[%clk 0:01:36]}  f5 {[%clk 0:01:39]} 25. gxf6 {[%clk 0:01:14]}  Rbxf6 {[%clk 0:01:39]} 26. Qg2 {[%clk 0:01:14]}  Rf4 {[%clk 0:01:32]} 27. Bd5+ {[%clk 0:01:12]}  Kg7 {[%clk 0:01:12]} 28. Rxf4 {[%clk 0:01:09]}  Rxf4 {[%clk 0:01:13]} 29. Qg3 {[%clk 0:01:00]}  Be5 {[%clk 0:00:59]} 30. Qg5 {[%clk 0:00:54]}  Qd6 {[%clk 0:00:45]} 31. Rc2 {[%clk 0:00:18]}  Bf6 {[%clk 0:00:45]} 32. Qg2 {[%clk 0:00:18]}  Rxh4+ {[%clk 0:00:44]} 33. Kg1 {[%clk 0:00:19]}  Bd4+ {[%clk 0:00:45]} 34. Kf1 {[%clk 0:00:19]}  Qe5 {[%clk 0:00:40]} 35. Bf3 {[%clk 0:00:14]}  Rf4 {[%clk 0:00:35]} 36. Rd2 {[%clk 0:00:07]}  Qe3 {[%clk 0:00:32]} 0-1


[Site "https://www.chess.com"]

[Event "Titled Tuesday Blitz August 3 2021"]
[White "Gallegos Diaz, Carlos Alberto"]
[Black "Pinheiro, Iung Alicio de O."]
[WhiteFideId "3900886"]
[BlackFideId "2104350"]
[WhiteElo "2362"]
[BlackElo "2537"]
[Result "0-1"]
[Round "08"]
[TimeControl "180+1"]
[Date "2021.08.03"]
[WhiteClock "0:00:19"]
[BlackClock "0:00:17"]

1. e4 {[%clk 0:03:00]}  c5 {[%clk 0:02:58]} 2. Nf3 {[%clk 0:03:00]}  d6 {[%clk 0:02:57]} 3. Bb5+ {[%clk 0:02:55]}  Nd7 {[%clk 0:02:56]} 4. O-O {[%clk 0:02:53]}  a6 {[%clk 0:02:55]} 5. Bxd7+ {[%clk 0:02:53]}  Bxd7 {[%clk 0:02:54]} 6. c3 {[%clk 0:02:50]}  Bc6 {[%clk 0:02:40]} 7. Re1 {[%clk 0:02:41]}  Nf6 {[%clk 0:02:25]} 8. e5 {[%clk 0:02:09]}  dxe5 {[%clk 0:02:10]} 9. Nxe5 {[%clk 0:02:10]}  Rc8 {[%clk 0:02:00]} 10. d4 {[%clk 0:02:03]}  e6 {[%clk 0:01:58]} 11. Be3 {[%clk 0:01:28]}  cxd4 {[%clk 0:01:46]} 12. cxd4 {[%clk 0:01:25]}  Bb4 {[%clk 0:01:41]} 13. Nc3 {[%clk 0:01:24]}  O-O {[%clk 0:01:40]} 14. Rc1 {[%clk 0:01:22]}  h6 {[%clk 0:01:37]} 15. Qb3 {[%clk 0:01:16]}  Qa5 {[%clk 0:01:24]} 16. Nc4 {[%clk 0:01:08]}  Bxc3 {[%clk 0:00:47]} 17. Nxa5 {[%clk 0:01:07]}  Bxa5 {[%clk 0:00:48]} 18. h3 {[%clk 0:00:56]}  Bxe1 {[%clk 0:00:44]} 19. Rxe1 {[%clk 0:00:54]}  Bd5 {[%clk 0:00:45]} 20. Qa3 {[%clk 0:00:51]}  Rc2 {[%clk 0:00:42]} 21. Rc1 {[%clk 0:00:45]}  Rfc8 {[%clk 0:00:41]} 22. Rxc2 {[%clk 0:00:44]}  Rxc2 {[%clk 0:00:41]} 23. g4 {[%clk 0:00:40]}  Ne4 {[%clk 0:00:37]} 24. Qe7 {[%clk 0:00:27]}  g5 {[%clk 0:00:25]} 25. a4 {[%clk 0:00:20]}  Rxb2 {[%clk 0:00:23]} 26. a5 {[%clk 0:00:20]}  Rb1+ {[%clk 0:00:23]} 27. Kh2 {[%clk 0:00:20]}  Nc3 {[%clk 0:00:17]} 28. h4 {[%clk 0:00:19]}  Rh1+ {[%clk 0:00:16]} 29. Kg3 {[%clk 0:00:19]}  Ne2# {[%clk 0:00:17]} 0-1


[Site "https://www.chess.com"]

[Event "Titled Tuesday Blitz August 3 2021"]
[White "Galyas, Miklos"]
[Black "Erdogdu, Mert"]
[WhiteFideId "707244"]
[BlackFideId "6301495"]
[WhiteElo "2409"]
[BlackElo "2485"]
[Result "0-1"]
[Round "08"]
[TimeControl "180+1"]
[Date "2021.08.03"]
[WhiteClock "0:00:24"]
[BlackClock "0:00:08"]

1. c4 {[%clk 0:03:00]}  e6 {[%clk 0:01:54]} 2. g3 {[%clk 0:02:59]}  d5 {[%clk 0:01:54]} 3. Bg2 {[%clk 0:02:59]}  Nf6 {[%clk 0:01:54]} 4. Nf3 {[%clk 0:02:59]}  c5 {[%clk 0:01:54]} 5. O-O {[%clk 0:02:59]}  Be7 {[%clk 0:01:55]} 6. cxd5 {[%clk 0:02:58]}  exd5 {[%clk 0:01:56]} 7. d4 {[%clk 0:02:59]}  O-O {[%clk 0:01:56]} 8. dxc5 {[%clk 0:02:54]}  Bxc5 {[%clk 0:01:56]} 9. Qc2 {[%clk 0:02:55]}  Bb6 {[%clk 0:01:55]} 10. Nc3 {[%clk 0:02:54]}  Nc6 {[%clk 0:01:54]} 11. Na4 {[%clk 0:02:49]}  Bg4 {[%clk 0:01:51]} 12. Nxb6 {[%clk 0:02:48]}  Qxb6 {[%clk 0:01:50]} 13. b3 {[%clk 0:02:43]}  Rfe8 {[%clk 0:01:46]} 14. Bb2 {[%clk 0:02:41]}  Ne4 {[%clk 0:01:44]} 15. Rad1 {[%clk 0:02:37]}  Rad8 {[%clk 0:01:37]} 16. Qb1 {[%clk 0:02:31]}  d4 {[%clk 0:01:11]} 17. h3 {[%clk 0:02:10]}  Bh5 {[%clk 0:01:07]} 18. Qa1 {[%clk 0:01:36]}  d3 {[%clk 0:00:57]} 19. exd3 {[%clk 0:01:35]}  Nxg3 {[%clk 0:00:54]} 20. Bxg7 {[%clk 0:01:35]}  Nxf1 {[%clk 0:00:48]} 21. Rxf1 {[%clk 0:01:34]}  Bxf3 {[%clk 0:00:40]} 22. Bxf3 {[%clk 0:01:31]}  Nd4 {[%clk 0:00:41]} 23. Bxd4 {[%clk 0:01:27]}  Qxd4 {[%clk 0:00:41]} 24. Be4 {[%clk 0:01:10]}  Qxa1 {[%clk 0:00:39]} 25. Rxa1 {[%clk 0:01:09]}  b6 {[%clk 0:00:39]} 26. Kf1 {[%clk 0:01:07]}  Rc8 {[%clk 0:00:39]} 27. Re1 {[%clk 0:01:01]}  Kg7 {[%clk 0:00:36]} 28. Re3 {[%clk 0:01:00]}  Rc2 {[%clk 0:00:34]} 29. Rg3+ {[%clk 0:00:59]}  Kh8 {[%clk 0:00:29]} 30. a4 {[%clk 0:00:58]}  Re5 {[%clk 0:00:19]} 31. Rf3 {[%clk 0:00:55]}  Kg7 {[%clk 0:00:18]} 32. Rg3+ {[%clk 0:00:55]}  Kf8 {[%clk 0:00:16]} 33. Bxh7 {[%clk 0:00:54]}  Rc3 {[%clk 0:00:15]} 34. Rg8+ {[%clk 0:00:40]}  Ke7 {[%clk 0:00:15]} 35. Ra8 {[%clk 0:00:40]}  Rc7 {[%clk 0:00:15]} 36. Be4 {[%clk 0:00:39]}  f5 {[%clk 0:00:14]} 37. Bf3 {[%clk 0:00:39]}  Rec5 {[%clk 0:00:14]} 38. h4 {[%clk 0:00:39]}  Kf6 {[%clk 0:00:14]} 39. h5 {[%clk 0:00:39]}  Kg5 {[%clk 0:00:14]} 40. Rg8+ {[%clk 0:00:38]}  Kh6 {[%clk 0:00:15]} 41. Rg6+ {[%clk 0:00:37]}  Kh7 {[%clk 0:00:14]} 42. Rf6 {[%clk 0:00:37]}  Kg7 {[%clk 0:00:14]} 43. Rg6+ {[%clk 0:00:37]}  Kf7 {[%clk 0:00:15]} 44. Rg3 {[%clk 0:00:35]}  Rc1+ {[%clk 0:00:11]} 45. Kg2 {[%clk 0:00:34]}  R1c2 {[%clk 0:00:12]} 46. h6 {[%clk 0:00:34]}  Kf6 {[%clk 0:00:10]} 47. Bh5 {[%clk 0:00:32]}  Rh7 {[%clk 0:00:09]} 48. Rg6+ {[%clk 0:00:32]}  Ke5 {[%clk 0:00:09]} 49. Bf3 {[%clk 0:00:30]}  Kf4 {[%clk 0:00:09]} 50. Rf6 {[%clk 0:00:28]}  Kg5 {[%clk 0:00:08]} 51. Rc6 {[%clk 0:00:26]}  Rxc6 {[%clk 0:00:07]} 52. Bxc6 {[%clk 0:00:25]}  Rxh6 {[%clk 0:00:08]} 53. Kf3 {[%clk 0:00:24]}  Rxc6 {[%clk 0:00:08]} 0-1


[Site "https://www.chess.com"]

[Event "Titled Tuesday Blitz August 3 2021"]
[White "Grachev, Boris"]
[Black "Xiong, Jeffery"]
[WhiteFideId "4129199"]
[BlackFideId "2047640"]
[WhiteElo "2595"]
[BlackElo "2724"]
[Result "1/2-1/2"]
[Round "08"]
[TimeControl "180+1"]
[Date "2021.08.03"]
[WhiteClock "0:00:06"]
[BlackClock "0:00:05"]

1. d4 {[%clk 0:03:00]}  d5 {[%clk 0:02:38]} 2. Bf4 {[%clk 0:03:01]}  Nf6 {[%clk 0:02:36]} 3. e3 {[%clk 0:03:01]}  e6 {[%clk 0:02:37]} 4. Nd2 {[%clk 0:03:01]}  c5 {[%clk 0:02:37]} 5. c3 {[%clk 0:03:00]}  Nbd7 {[%clk 0:02:37]} 6. Ngf3 {[%clk 0:02:55]}  Be7 {[%clk 0:02:38]} 7. h3 {[%clk 0:02:54]}  O-O {[%clk 0:02:38]} 8. Bd3 {[%clk 0:02:54]}  c4 {[%clk 0:02:38]} 9. Bc2 {[%clk 0:02:54]}  b5 {[%clk 0:02:39]} 10. a3 {[%clk 0:02:54]}  Bb7 {[%clk 0:02:39]} 11. O-O {[%clk 0:02:50]}  a5 {[%clk 0:02:39]} 12. Ne5 {[%clk 0:02:40]}  b4 {[%clk 0:02:39]} 13. Nxd7 {[%clk 0:02:31]}  Qxd7 {[%clk 0:02:37]} 14. Ba4 {[%clk 0:02:28]}  Bc6 {[%clk 0:02:37]} 15. Bxc6 {[%clk 0:02:27]}  Qxc6 {[%clk 0:02:38]} 16. a4 {[%clk 0:02:26]}  Nd7 {[%clk 0:02:26]} 17. Nf3 {[%clk 0:02:04]}  Ra7 {[%clk 0:02:16]} 18. Ne5 {[%clk 0:02:00]}  Nxe5 {[%clk 0:02:15]} 19. Bxe5 {[%clk 0:02:01]}  Rb7 {[%clk 0:02:15]} 20. Qc2 {[%clk 0:01:57]}  Bd6 {[%clk 0:02:03]} 21. Bxd6 {[%clk 0:01:58]}  Qxd6 {[%clk 0:02:04]} 22. e4 {[%clk 0:01:58]}  Rfb8 {[%clk 0:01:59]} 23. exd5 {[%clk 0:01:58]}  Qxd5 {[%clk 0:01:44]} 24. Rfe1 {[%clk 0:01:58]}  bxc3 {[%clk 0:01:44]} 25. bxc3 {[%clk 0:01:59]}  Rb2 {[%clk 0:01:44]} 26. Qc1 {[%clk 0:01:50]}  Qf5 {[%clk 0:01:40]} 27. Qe3 {[%clk 0:01:50]}  h6 {[%clk 0:01:35]} 28. Qg3 {[%clk 0:01:43]}  R8b3 {[%clk 0:01:33]} 29. Re5 {[%clk 0:01:31]}  Qf6 {[%clk 0:01:21]} 30. Rf1 {[%clk 0:01:25]}  Rc2 {[%clk 0:01:18]} 31. Rxa5 {[%clk 0:01:25]}  Rcxc3 {[%clk 0:01:18]} 32. Qe5 {[%clk 0:01:17]}  Rd3 {[%clk 0:01:12]} 33. Qxf6 {[%clk 0:01:06]}  gxf6 {[%clk 0:01:13]} 34. Rc5 {[%clk 0:01:06]}  Rxd4 {[%clk 0:01:03]} 35. Ra1 {[%clk 0:01:03]}  Rb6 {[%clk 0:00:47]} 36. a5 {[%clk 0:00:56]}  Ra6 {[%clk 0:00:47]} 37. Ra3 {[%clk 0:00:55]}  f5 {[%clk 0:00:42]} 38. Rg3+ {[%clk 0:00:50]}  Kf8 {[%clk 0:00:42]} 39. Rc8+ {[%clk 0:00:50]}  Ke7 {[%clk 0:00:42]} 40. Rc7+ {[%clk 0:00:47]}  Kf6 {[%clk 0:00:41]} 41. Rc5 {[%clk 0:00:39]}  Rd3 {[%clk 0:00:38]} 42. Rxd3 {[%clk 0:00:28]}  cxd3 {[%clk 0:00:39]} 43. Kf1 {[%clk 0:00:29]}  Ke7 {[%clk 0:00:32]} 44. Ke1 {[%clk 0:00:27]}  Kd6 {[%clk 0:00:32]} 45. Rb5 {[%clk 0:00:27]}  Kc6 {[%clk 0:00:32]} 46. Re5 {[%clk 0:00:27]}  Kd6 {[%clk 0:00:23]} 47. Rb5 {[%clk 0:00:27]}  Rc6 {[%clk 0:00:14]} 48. Rb3 {[%clk 0:00:08]}  Rc1+ {[%clk 0:00:14]} 49. Kd2 {[%clk 0:00:08]}  Rc2+ {[%clk 0:00:15]} 50. Kxd3 {[%clk 0:00:03]}  Rxf2 {[%clk 0:00:13]} 51. Rb6+ {[%clk 0:00:02]}  Kc7 {[%clk 0:00:13]} 52. g4 {[%clk 0:00:02]}  fxg4 {[%clk 0:00:12]} 53. hxg4 {[%clk 0:00:03]}  Rf4 {[%clk 0:00:12]} 54. Ra6 {[%clk 0:00:03]}  Kb7 {[%clk 0:00:11]} 55. Rb6+ {[%clk 0:00:04]}  Kc7 {[%clk 0:00:12]} 56. Ra6 {[%clk 0:00:04]}  Kb7 {[%clk 0:00:09]} 57. Rb6+ {[%clk 0:00:04]}  Ka7 {[%clk 0:00:10]} 58. Rd6 {[%clk 0:00:05]}  e5 {[%clk 0:00:06]} 59. Rxh6 {[%clk 0:00:03]}  Rxg4 {[%clk 0:00:06]} 60. Rf6 {[%clk 0:00:04]}  Rd4+ {[%clk 0:00:03]} 61. Ke3 {[%clk 0:00:04]}  Rd7 {[%clk 0:00:04]} 62. Ke4 {[%clk 0:00:04]}  Re7 {[%clk 0:00:03]} 63. a6 {[%clk 0:00:05]}  Re6 {[%clk 0:00:03]} 64. Rxf7+ {[%clk 0:00:04]}  Kxa6 {[%clk 0:00:03]} 65. Rf5 {[%clk 0:00:05]}  Rb6 {[%clk 0:00:03]} 66. Rxe5 {[%clk 0:00:06]}  Rb4+ {[%clk 0:00:03]} 67. Kf5 {[%clk 0:00:06]}  Rb5 {[%clk 0:00:04]} 68. Rxb5 {[%clk 0:00:06]}  Kxb5 {[%clk 0:00:05]} 1/2-1/2


[Site "https://www.chess.com"]

[Event "Titled Tuesday Blitz August 3 2021"]
[White "Gupta, Abhijeet"]
[Black "Anuj Shrivatri"]
[WhiteFideId "5010608"]
[BlackFideId "35070924"]
[WhiteElo "2549"]
[BlackElo "2038"]
[Result "1-0"]
[Round "08"]
[TimeControl "180+1"]
[Date "2021.08.03"]
[WhiteClock "0:00:16"]
[BlackClock "0:00:02"]

1. Nf3 {[%clk 0:03:00]}  Nf6 {[%clk 0:02:56]} 2. c4 {[%clk 0:02:59]}  g6 {[%clk 0:02:56]} 3. Nc3 {[%clk 0:02:59]}  Bg7 {[%clk 0:02:57]} 4. e4 {[%clk 0:02:58]}  d6 {[%clk 0:02:58]} 5. d4 {[%clk 0:02:55]}  O-O {[%clk 0:02:59]} 6. h3 {[%clk 0:02:56]}  e5 {[%clk 0:02:58]} 7. d5 {[%clk 0:02:56]}  Nh5 {[%clk 0:02:57]} 8. g3 {[%clk 0:02:55]}  Na6 {[%clk 0:02:52]} 9. Be2 {[%clk 0:02:52]}  f5 {[%clk 0:02:50]} 10. exf5 {[%clk 0:02:50]}  gxf5 {[%clk 0:02:50]} 11. Bg5 {[%clk 0:02:49]}  Nf6 {[%clk 0:02:21]} 12. Nh4 {[%clk 0:02:47]}  Qe8 {[%clk 0:02:09]} 13. Qc2 {[%clk 0:02:43]}  Nc5 {[%clk 0:02:01]} 14. Be3 {[%clk 0:02:42]}  e4 {[%clk 0:01:17]} 15. O-O-O {[%clk 0:02:35]}  Nfd7 {[%clk 0:01:16]} 16. Nb5 {[%clk 0:02:25]}  Qd8 {[%clk 0:01:15]} 17. Nd4 {[%clk 0:02:25]}  Ne5 {[%clk 0:01:12]} 18. Kb1 {[%clk 0:02:23]}  Ned3 {[%clk 0:01:05]} 19. Ng2 {[%clk 0:02:16]}  Be5 {[%clk 0:00:46]} 20. Bxd3 {[%clk 0:02:04]}  exd3 {[%clk 0:00:30]} 21. Rxd3 {[%clk 0:02:04]}  Nxd3 {[%clk 0:00:30]} 22. Qxd3 {[%clk 0:02:05]}  Qe7 {[%clk 0:00:10]} 23. Nf4 {[%clk 0:01:27]}  Qf7 {[%clk 0:00:10]} 24. Ka1 {[%clk 0:01:23]}  Kh8 {[%clk 0:00:10]} 25. Nf3 {[%clk 0:01:20]}  Bg7 {[%clk 0:00:08]} 26. Ng5 {[%clk 0:01:18]}  Qf6 {[%clk 0:00:07]} 27. Rb1 {[%clk 0:01:05]}  Qxg5 {[%clk 0:00:07]} 28. Ne6 {[%clk 0:01:06]}  Qe7 {[%clk 0:00:07]} 29. Nxf8 {[%clk 0:00:53]}  Qxf8 {[%clk 0:00:08]} 30. g4 {[%clk 0:00:46]}  Bd7 {[%clk 0:00:07]} 31. g5 {[%clk 0:00:45]}  f4 {[%clk 0:00:06]} 32. Bd4 {[%clk 0:00:42]}  Re8 {[%clk 0:00:05]} 33. a3 {[%clk 0:00:39]}  Kg8 {[%clk 0:00:05]} 34. Rc1 {[%clk 0:00:34]}  Bf5 {[%clk 0:00:03]} 35. Qc3 {[%clk 0:00:34]}  b6 {[%clk 0:00:01]} 36. h4 {[%clk 0:00:34]}  Bxd4 {[%clk 0:00:01]} 37. Qxd4 {[%clk 0:00:35]}  Qe7 {[%clk 0:00:02]} 38. Qxf4 {[%clk 0:00:33]}  Qe4 {[%clk 0:00:03]} 39. Qd2 {[%clk 0:00:29]}  Qd3 {[%clk 0:00:03]} 40. Qb4 {[%clk 0:00:24]}  Re2 {[%clk 0:00:03]} 41. Qb5 {[%clk 0:00:20]}  Re7 {[%clk 0:00:02]} 42. h5 {[%clk 0:00:20]}  a5 {[%clk 0:00:02]} 43. h6 {[%clk 0:00:19]}  Qd2 {[%clk 0:00:02]} 44. Rb1 {[%clk 0:00:15]}  Bxb1 {[%clk 0:00:02]} 45. Kxb1 {[%clk 0:00:16]}  Re1+ {[%clk 0:00:02]} 46. Ka2 {[%clk 0:00:16]} 1-0


[Site "https://www.chess.com"]